bitfinex-derivatives/quotes_ETHF0:USTF0_20240830
["timestamp","ask_amount","ask_price","bid_price","bid_amount"]
[1725013059431,1.43,2524.7,2524.6,0.39608]
[1725013059633,0.98998,2525.2,2524.6,0.39608]
[1725013059634,1.43,2525.0,2524.9,0.39603]
[1725013059834,3.2078,2525.2,2525.1,0.396]
[1725013060041,3.2078,2525.2,2525.1,1.00293628]
[1725013060246,7.6328496,2525.2,2525.1,1.41338965]
[1725013060444,8.0288396,2525.2,2525.1,1.01738965]
[1725013060636,0.396,2525.1,2525.0,0.39601]
[1725013060841,0.396,2525.1,2525.0,1.4129674]
[1725013061041,0.396,2525.1,2525.0,1.90814206]
[1725013061342,0.396,2525.1,2525.0,1.51213206]
[1725013063195,0.396,2525.1,2525.0,0.90561603]
[1725013063334,0.396,2525.1,2525.0,1.511996]
[1725013065947,0.396,2525.1,2525.0,1.908006]
[1725013066270,0.396,2525.1,2525.0,1.41283134]
[1725013066451,7.6328496,2525.2,2525.1,0.396]
[1725013066647,7.6328496,2525.2,2525.1,1.41273202]
[1725013067141,7.6328496,2525.2,2525.1,1.9078878]
[1725013067749,7.6328496,2525.2,2525.1,1.90784578]
[1725013069047,8.0288296,2525.2,2525.1,1.90784578]
[1725013069256,8.0288296,2525.2,2525.1,1.41241341]
[1725013069451,8.0288296,2525.2,2525.1,1.49731917]
[1725013069899,8.0288296,2525.2,2525.1,0.89111996]
[1725013069910,8.0288296,2525.2,2525.1,1.49734521]
[1725013070043,8.0288296,2525.2,2525.1,1.00222525]
[1725013070444,8.0288296,2525.2,2525.1,1.49735871]
[1725013071357,8.0288296,2525.2,2525.1,0.89113346]
[1725013071662,8.0288296,2525.2,2525.1,1.49739103]
[1725013072240,8.0288296,2525.2,2525.1,0.89113346]
[1725013073654,9.0187996,2525.2,2525.1,0.49513346]
[1725013074745,8.0288296,2525.2,2525.1,0.49513346]
[1725013075649,8.0288296,2525.2,2525.1,0.89113346]
[1725013077018,4.8210296,2525.2,2525.1,0.396]
[1725013077145,4.8210296,2525.2,2525.1,0.7701]
[1725013077350,5.8109996,2525.2,2525.1,1.26523505]
[1725013077654,5.8109996,2525.2,2525.1,0.49513505]
[1725013077850,5.8109996,2525.2,2525.1,0.89113505]
[1725013078252,5.8109996,2525.2,2525.1,0.49513505]
[1725013079145,5.8109996,2525.2,2525.1,0.89113505]
[1725013079553,4.8210296,2525.2,2525.1,0.89113505]
[1725013079752,4.8210296,2525.2,2525.1,0.396]
[1725013079967,4.4250496,2525.2,2525.1,0.396]
[1725013080153,1.11966,2525.4,2525.3,0.39597]
[1725013080753,1.11966,2525.4,2525.3,0.78697]
[1725013081149,1.11966,2525.4,2525.3,1.28209622]
[1725013081352,0.76376,2525.4,2525.3,1.28209622]
[1725013081559,0.39596,2525.4,2525.3,1.28209622]
[1725013082351,5.14141,2525.6,2525.3,1.28209622]
[1725013082352,4.54754,2525.6,2525.5,0.39594]
[1725013082386,6.94997778,2525.6,2525.5,0.39594]
[1725013083157,6.94997778,2525.6,2525.5,0.89102954]
[1725013083349,4.39243778,2525.6,2525.5,4.85022954]
[1725013083656,3.60363,2526.2,2525.7,0.98977]
[1725013083850,0.39583,2526.2,2525.8,1.24928954]
[1725013084155,0.39583,2526.2,2526.0,0.39585]
[1725013084351,1.82584,2526.1,2525.9,0.39586]
[1725013084546,1.82584,2526.1,2526.0,0.49497517]
[1725013084756,2.81545,2526.1,2526.0,0.49497517]
[1725013084955,6.77385,2526.1,2526.0,0.49497517]
[1725013085261,0.39591,2525.7,2525.6,0.39592]
[1725013085634,0.39591,2525.7,2525.5,3.8991]
[1725013085635,0.39592,2525.6,2525.5,4.29504]
[1725013085755,0.75683,2525.6,2525.4,0.39595]
[1725013085957,0.75683,2525.6,2525.4,0.76565]
[1725013085958,0.39594,2525.5,2525.4,0.76565]
[1725013086460,0.39594,2525.5,2525.4,5.22071847]
[1725013088092,0.39594,2525.5,2525.4,4.82476847]
[1725013088262,0.39595,2525.4,2525.3,0.40189859]
[1725013088460,0.39595,2525.4,2525.3,0.00593859]
[1725013088805,0.75605,2525.4,2525.3,0.00593859]
[1725013088864,0.75605,2525.4,2525.3,0.50101973]
[1725013089158,1.74594,2525.4,2525.3,0.50101973]
[1725013089366,6.33477969,2525.4,2525.3,0.50101973]
[1725013089564,6.33477969,2525.4,2525.3,0.99613415]
[1725013089858,6.33477969,2525.4,2525.3,0.50101973]
[1725013090164,6.33477969,2525.4,2525.3,0.50107071]
[1725013090463,0.39605,2524.8,2524.7,0.3616]
[1725013090658,0.39604,2524.9,2524.7,2.66074542]
[1725013090855,0.39602,2525.0,2524.8,0.89121231]
[1725013091060,0.78162,2525.0,2524.9,0.49516231]
[1725013091252,0.3856,2525.0,2524.9,0.89119231]
[1725013091464,0.39601,2525.0,2524.9,0.89119231]
[1725013091657,0.39601,2525.0,2524.9,4.35683]
[1725013091966,4.52580687,2525.0,2524.9,4.35683]
[1725013092158,0.39601,2525.0,2524.9,4.35683]
[1725013092767,0.39603,2524.9,2524.8,0.39603]
[1725013093067,0.39605,2524.8,2524.7,0.79429859]
[1725013093256,0.39605,2524.8,2524.7,1.41769445]
[1725013093257,1.11015,2524.8,2524.7,1.41769445]
[1725013093457,1.11015,2524.8,2524.7,0.00593859]
[1725013094159,1.11015,2524.8,2524.7,0.40199859]
[1725013094361,1.11015,2524.8,2524.7,0.00593859]
[1725013094574,10.5783136,2524.8,2524.7,0.00593859]
[1725013094869,10.9362136,2524.8,2524.7,0.00593859]
[1725013095565,14.3562136,2524.8,2524.7,0.00593859]
[1725013096471,15.3463336,2524.8,2524.7,0.00593859]
[1725013096664,0.39614,2524.2,2524.1,0.3851]
[1725013096868,0.39614,2524.2,2524.1,1.40150188]
[1725013097279,0.75074,2524.3,2524.1,1.79764188]
[1725013097464,0.75074,2524.3,2524.2,1.01640188]
[1725013097666,5.24887672,2524.3,2524.2,1.41254188]
[1725013098569,0.39614,2524.2,2524.1,0.78124]
[1725013098771,0.39614,2524.2,2524.1,1.79766549]
[1725013101167,0.39614,2524.2,2524.1,2.67321978]
[1725013101374,0.39614,2524.2,2524.1,1.79766549]
[1725013101892,0.39614,2524.2,2524.1,1.79760398]
[1725013102269,0.39614,2524.2,2524.1,1.79761699]
[1725013102573,0.39614,2524.2,2524.1,1.40147699]
[1725013103068,0.39614,2524.2,2524.1,1.79763699]
[1725013103570,0.39614,2524.2,2524.1,1.01637699]
[1725013104272,0.39614,2524.2,2524.1,1.00230045]
[1725013104678,0.39614,2524.2,2524.1,0.60614045]
[1725013104874,0.39616,2524.1,2524.0,0.00593859]
[1725013105398,5.66894579,2524.1,2524.0,0.00593859]
[1725013105408,5.66894579,2524.1,2524.0,0.61215041]
[1725013105872,9.63054579,2524.1,2524.0,0.61215041]
[1725013106061,9.63054579,2524.1,2524.0,0.00593859]
[1725013106266,5.66894579,2524.1,2524.0,0.00593859]
[1725013106670,9.63054579,2524.1,2524.0,0.00593859]
[1725013107373,5.66894579,2524.1,2524.0,0.00593859]
[1725013108867,4.67854579,2524.1,2524.0,0.00593859]
[1725013110165,4.28238579,2524.1,2524.0,0.40210859]
[1725013110578,4.5933442,2524.2,2524.1,0.39614]
[1725013110773,0.39614,2524.2,2524.1,0.77144]
[1725013111079,4.5678858,2524.2,2524.1,0.77144]
[1725013111668,5.5582458,2524.2,2524.1,0.3753]
[1725013112079,1.38656,2524.1,2524.0,0.00593859]
[1725013112479,5.90545938,2524.1,2524.0,0.00593859]
[1725013113568,10.85745938,2524.1,2524.0,0.00593859]
[1725013113774,16.85745938,2524.1,2524.0,0.00593859]
[1725013113975,3.81622,2523.7,2523.6,0.3643]
[1725013114372,8.12844279,2523.7,2523.6,0.3643]
[1725013114577,8.12844279,2523.7,2523.6,0.76053]
[1725013115077,4.70844279,2523.7,2523.6,0.76053]
[1725013115511,4.70844279,2523.7,2523.6,4.72293]
[1725013115512,4.31222279,2523.7,2523.6,4.72293]
[1725013115668,3.82213859,2523.9,2523.8,0.3962]
[1725013123476,0.40213859,2523.9,2523.8,0.3962]
[1725013125274,0.40213859,2523.9,2523.8,1.1693]
[1725013128297,0.00593859,2523.9,2523.8,1.1693]
[1725013128474,0.00593859,2523.9,2523.8,2.15982]
[1725013129079,0.40212859,2523.9,2523.8,2.15982]
[1725013129424,0.00593859,2523.9,2523.8,2.15982]
[1725013130488,0.00593859,2523.9,2523.8,16.32054]
[1725013130690,2.8164,2524.4,2524.3,0.39611]
[1725013130888,0.39615,2524.3,2524.2,0.39613]
[1725013131188,6.19406846,2524.3,2524.2,0.39613]
[1725013131977,11.14598846,2524.3,2524.2,0.39613]
[1725013132190,7.18438846,2524.3,2524.2,0.39613]
[1725013132725,0.39617,2524.2,2523.6,1.03597182]
[1725013133051,0.39617,2524.2,2523.7,0.39621]
[1725013133052,1.82622,2523.8,2523.7,0.39621]
[1725013133191,1.82622,2523.8,2523.7,1.0022481]
[1725013133491,2.20952,2523.8,2523.7,1.0022481]
[1725013134197,0.77952,2523.8,2523.7,1.41243134]
[1725013134682,1.77004,2523.8,2523.7,1.01622134]
[1725013134878,1.77004,2523.8,2523.7,0.6060381]
[1725013135088,6.14859349,2523.8,2523.7,0.6060381]
[1725013135290,6.14859349,2523.8,2523.7,1.01623545]
[1725013135930,0.39622,2523.7,2523.6,0.3772]
[1725013136118,0.77222,2523.7,2523.6,0.78742469]
[1725013136396,5.34882061,2523.7,2523.6,1.89191917]
[1725013136888,5.34882061,2523.7,2523.6,2.28814917]
[1725013137085,5.34882061,2523.7,2523.6,2.53250145]
[1725013138784,5.34882061,2523.7,2523.6,2.92873145]
[1725013139120,5.34882061,2523.7,2523.6,3.95266709]
[1725013139437,5.34882061,2523.7,2523.6,0.39623]
[1725013139500,5.34882061,2523.7,2523.6,3.95285062]
[1725013139802,5.34882061,2523.7,2523.6,3.55662062]
[1725013140195,6.33937061,2523.7,2523.6,3.95285062]
[1725013140902,6.33937061,2523.7,2523.6,4.98882244]
[1725013141776,6.33937061,2523.7,2523.6,1.43220182]
[1725013141864,6.33937061,2523.7,2523.6,5.77750196]
[1725013144861,6.33937061,2523.7,2523.6,1.43220182]
[1725013145088,6.33937061,2523.7,2523.6,4.34858838]
[1725013145307,6.33937061,2523.7,2523.6,7.75982597]
[1725013145604,10.74992061,2523.7,2523.6,5.38200719]
[1725013145798,10.74992061,2523.7,2523.6,3.55704601]
[1725013147196,11.12122061,2523.7,2523.6,3.55791841]
[1725013148237,1.38682,2523.6,2523.5,1.03601799]
[1725013148393,1.38682,2523.6,2523.5,3.75270232]
[1725013148726,1.38682,2523.6,2523.5,6.40808241]
[1725013149002,1.38682,2523.6,2523.5,5.61883133]
[1725013149305,1.38682,2523.6,2523.5,4.58281334]
[1725013149499,6.33981,2523.6,2523.5,4.58281334]
[1725013149803,10.76924656,2523.6,2523.5,3.55837508]
[1725013150001,10.76924656,2523.6,2523.5,3.55856124]
[1725013150209,10.76924656,2523.6,2523.5,1.89302873]
[1725013150501,10.97156442,2523.6,2523.5,1.89302873]
[1725013151001,16.97156442,2523.6,2523.5,1.01693294]
[1725013151453,16.97156442,2523.6,2523.4,0.00593859]
[1725013151454,1.38688,2523.5,2523.4,0.00593859]
[1725013151654,12.96771,2523.5,2523.4,0.41660255]
[1725013151800,23.31434358,2523.5,2523.4,1.02339429]
[1725013152107,17.31434358,2523.5,2523.4,1.02339429]
[1725013152410,23.31514358,2523.5,2523.4,0.61273033]
[1725013152717,23.31514358,2523.5,2523.4,0.00593859]
[1725013153994,21.32514358,2523.5,2523.4,0.00593859]
[1725013154709,0.39634,2522.9,2522.8,3.8857]
[1725013154905,0.39634,2522.9,2522.8,2.53622445]
[1725013154906,2.81721,2522.9,2522.8,2.53622445]
[1725013155104,7.1176533,2522.9,2522.8,2.53622445]
[1725013155403,7.1176533,2522.9,2522.8,1.89470768]
[1725013155707,14.2894533,2522.9,2522.8,0.60698303]
[1725013155904,0.39638,2522.7,2522.6,0.00593859]
[1725013156210,2.81733,2522.7,2522.6,1.02398711]
[1725013156517,7.22376764,2522.7,2522.6,1.02398711]
[1725013157208,7.22376764,2522.7,2522.6,0.61304145]
[1725013157860,7.22376764,2522.7,2522.6,0.00593859]
[1725013158007,13.18776764,2522.7,2522.6,0.00593859]
[1725013158308,14.17871764,2522.7,2522.6,0.00593859]
[1725013160312,13.18776764,2522.7,2522.6,0.00593859]
[1725013163112,12.19681764,2522.7,2522.6,0.00593859]
[1725013164345,12.19681764,2522.7,2522.6,0.40232859]
[1725013164346,7.83643764,2522.7,2522.6,0.40232859]
[1725013164814,8.23281764,2522.7,2522.6,0.40232859]
[1725013167739,7.83643764,2522.7,2522.6,0.40232859]
[1725013168123,8.23281764,2522.7,2522.6,0.40232859]
[1725013168616,9.22376764,2522.7,2522.6,0.00593859]
[1725013168823,8.23281764,2522.7,2522.6,0.40232859]
[1725013169769,4.40643764,2522.7,2522.6,1.39331859]
[1725013169839,4.40643764,2522.7,2522.6,5.35731859]
[1725013170026,0.39636,2522.8,2522.7,0.39636]
[1725013172415,6.6378,2522.9,2522.6,0.99692859]
[1725013172618,0.00593859,2523.1,2523.0,0.39633]
[1725013173022,0.00593859,2523.1,2523.0,4.35953]
[1725013178029,1.43593859,2523.1,2523.0,4.35953]
[1725013179737,0.00593859,2523.1,2523.0,6.34119]
[1725013180137,0.00593859,2523.1,2523.0,6.94807168]
[1725013180733,0.00593859,2523.1,2523.0,7.35879998]
[1725013181032,1.18627294,2523.6,2523.0,7.35879998]
[1725013181033,3.2078,2523.8,2523.6,0.39622]
[1725013181346,6.36895567,2523.7,2523.6,0.39622]
[1725013185128,5.97272567,2523.7,2523.6,0.39622]
[1725013191041,5.97272567,2523.7,2523.6,4.35862]
[1725013191391,0.00593859,2523.9,2523.8,1.38672]
[1725013191545,0.00593859,2523.9,2523.8,5.1193]
[1725013191845,0.00593859,2523.9,2523.8,5.4782]
[1725013193342,0.39353859,2523.9,2523.8,5.4782]
[1725013195848,0.78972859,2523.9,2523.8,5.4782]
[1725013196249,0.78972859,2523.9,2523.8,5.0984]
[1725013196449,0.78972859,2523.9,2523.8,1.136]
[1725013196649,0.78972859,2523.9,2523.8,5.0984]
[1725013202959,0.78972859,2523.9,2523.3,3.2078]
[1725013202960,0.39625,2523.6,2523.3,3.2078]
[1725013203160,6.1061084,2523.9,2523.3,0.39627]
[1725013203161,0.39628,2523.4,2523.3,0.39627]
[1725013204867,0.75938,2523.4,2523.3,0.39627]
[1725013205057,0.3631,2523.4,2523.3,0.39627]
[1725013205269,2.18286,2523.5,2523.4,0.39627]
[1725013206261,0.39627,2523.4,2523.3,0.78577]
[1725013206463,1.38694,2523.4,2523.3,0.39627]
[1725013206660,1.38694,2523.4,2523.2,3.91359]
[1725013206661,0.39628,2523.3,2523.2,3.91359]
[1725013206872,0.76418,2523.3,2523.2,3.91359]
[1725013207575,0.3963,2523.2,2523.1,0.3678]
[1725013207773,0.3963,2523.2,2523.1,0.76411]
[1725013208270,1.8263,2523.2,2523.1,1.37076866]
[1725013208474,2.81705,2523.2,2523.1,0.3678]
[1725013208773,2.81705,2523.2,2523.1,1.01728658]
[1725013208970,1.3871,2523.1,2523.0,0.39632]
[1725013209181,1.3871,2523.1,2522.9,3.2078]
[1725013209182,1.38716,2523.0,2522.9,3.2078]
[1725013209471,1.38716,2523.0,2522.7,3.5173]
[1725013209472,0.39636,2522.8,2522.7,3.5173]
[1725013209673,1.82636,2522.8,2522.7,4.53503456]
[1725013209869,1.82636,2522.8,2522.7,3.5173]
[1725013210472,1.82636,2522.8,2522.7,3.92825988]
[1725013210669,1.82636,2522.8,2522.7,3.5173]
[1725013211279,6.30851101,2522.8,2522.7,3.5173]
[1725013211580,0.39638,2522.7,2522.6,0.00593859]
[1725013212575,0.39638,2522.7,2522.6,0.4169794]
[1725013213275,0.39638,2522.7,2522.6,1.02418225]
[1725013213934,0.39638,2522.7,2522.6,0.00593859]
[1725013213993,0.39638,2522.7,2522.6,1.02414606]
[1725013214472,0.39638,2522.7,2522.6,1.63136367]
[1725013214977,5.81132902,2522.7,2522.6,0.61313506]
[1725013216170,9.77532902,2522.7,2522.6,0.61313506]
[1725013219280,0.39648,2522.1,2522.0,0.39648]
[1725013219578,1.82648,2522.1,2522.0,1.4148938]
[1725013220587,1.82648,2522.1,2522.0,1.41490927]
[1725013220668,1.82648,2522.1,2522.0,1.01836169]
[1725013220868,1.82648,2522.1,2522.0,1.41485169]
[1725013221365,1.82648,2522.1,2522.0,0.39649]
[1725013221366,1.43,2522.1,2522.0,0.39649]
[1725013221571,1.82646,2522.2,2522.1,0.39647]
[1725013222778,1.43,2522.2,2522.1,0.39647]
[1725013222985,1.82645,2522.2,2522.1,0.39647]
[1725013224084,0.39645,2522.2,2522.1,0.39647]
[1725013226777,0.75275,2522.2,2522.1,0.39647]
[1725013227084,0.39645,2522.2,2522.1,0.39647]
[1725013229169,0.39645,2522.2,2521.9,4.57966]
[1725013229170,0.00593859,2522.3,2521.9,3.5884]
[1725013229472,0.00593859,2522.3,2522.2,1.38759]
[1725013229882,4.29854711,2522.3,2522.2,1.38759]
[1725013230681,4.29854711,2522.3,2522.2,1.51505]
[1725013232082,4.29854711,2522.3,2522.2,2.50619]
[1725013232489,4.29854711,2522.3,2522.2,5.71399]
[1725013234070,4.29854711,2522.3,2522.2,2.50619]
[1725013237083,4.29854711,2522.3,2522.2,1.51505]
[1725013237281,4.66184711,2522.3,2522.2,1.51505]
[1725013238990,1.98173,2523.0,2522.4,0.99104]
[1725013238991,3.60414,2523.0,2522.4,0.99104]
[1725013239283,3.60414,2523.0,2522.9,0.39634]
[1725013239583,4.78030392,2522.9,2522.7,0.39637]
[1725013239783,4.78030392,2522.9,2522.7,0.39638]
[1725013239986,3.43,2522.9,2522.6,0.76158]
[1725013240287,4.31162092,2522.8,2522.6,0.76158]
[1725013240486,0.3859,2522.7,2522.6,0.76158]
[1725013240685,0.7408,2522.7,2522.6,0.76158]
[1725013240886,0.7408,2522.7,2522.6,4.72558]
[1725013242187,4.31162092,2522.8,2522.7,0.39638]
[1725013242485,3.2078,2523.0,2522.9,0.39634]
[1725013244385,3.43593859,2523.1,2523.0,0.39633]
[1725013244686,0.00593859,2523.1,2523.0,0.39633]
[1725013244887,0.00593859,2523.1,2523.0,1.78068253]
[1725013245297,0.00593859,2523.1,2523.0,0.76313]
[1725013245482,0.00593859,2523.1,2523.0,1.78071699]
[1725013245678,0.00593859,2523.1,2523.0,0.76313]
[1725013246090,0.00593859,2523.1,2523.0,1.17392632]
[1725013246289,0.00593859,2523.1,2523.0,1.1739196]
[1725013246592,0.00593859,2523.1,2523.0,0.76313]
[1725013246781,0.00593859,2523.1,2523.0,1.17392612]
[1725013247340,0.40224859,2523.1,2523.0,1.3699149]
[1725013247584,0.40224859,2523.1,2523.0,0.76313]
[1725013247993,1.83224859,2523.1,2523.0,0.39633]
[1725013248291,6.42943009,2523.1,2523.0,1.41392235]
[1725013248691,6.03312009,2523.1,2523.0,1.41392235]
[1725013249098,0.00593859,2523.1,2523.0,6.36795235]
[1725013249391,0.00593859,2523.1,2523.0,7.88562336]
[1725013250845,0.00593859,2523.1,2523.0,7.88539122]
[1725013251098,0.00593859,2523.1,2523.0,6.89456122]
[1725013252891,0.00593859,2523.1,2523.0,5.41149111]
[1725013253100,0.00593859,2523.1,2523.0,4.35953]
[1725013253325,0.00593859,2523.1,2523.0,5.41200413]
[1725013253597,0.00593859,2523.1,2523.0,6.89577993]
[1725013254221,0.00593859,2523.1,2523.0,4.35953]
[1725013254420,0.00593859,2523.1,2523.0,6.89630043]
[1725013254898,4.4409575,2523.1,2523.0,2.93310043]
[1725013255190,9.2480575,2523.1,2523.0,1.6597636]
[1725013255391,9.2480575,2523.1,2523.0,1.01805149]
[1725013256181,14.2020475,2523.1,2523.0,1.01805149]
[1725013256385,23.4098475,2523.1,2523.0,0.41098545]
[1725013256781,0.39639,2522.6,2522.5,0.3964]
[1725013256988,0.39639,2522.6,2522.5,2.93564518]
[1725013257390,0.39639,2522.6,2522.5,2.53924518]
[1725013257391,1.51929,2522.6,2522.5,2.53924518]
[1725013257596,1.51929,2522.6,2522.5,2.93565518]
[1725013257844,1.51929,2522.6,2522.5,1.66139504]
[1725013258598,1.51929,2522.6,2522.5,2.05780504]
[1725013260677,1.51929,2522.6,2522.5,1.45016459]
[1725013260799,1.51929,2522.6,2522.5,0.39641]
[1725013261129,0.7479,2522.6,2522.5,2.05773673]
[1725013261307,1.14429,2522.6,2522.5,2.05773673]
[1725013261504,10.24557838,2522.6,2522.5,1.01899372]
[1725013263620,10.24557838,2522.6,2522.5,0.60761296]
[1725013263702,10.24557838,2522.6,2522.5,1.01905215]
[1725013264514,0.39641,2522.5,2522.4,0.39642]
[1725013264524,0.75561,2522.5,2522.4,1.45028343]
[1725013264702,5.26487934,2522.5,2522.4,2.05797308]
[1725013265103,5.26487934,2522.5,2522.4,1.41554855]
[1725013265299,13.63990934,2522.5,2522.4,1.01912855]
[1725013265605,0.99112,2522.3,2522.0,0.76878]
[1725013265817,4.56975,2522.2,2522.1,2.53967184]
[1725013266105,9.01505537,2522.2,2522.1,2.53967184]
[1725013266602,9.01505537,2522.2,2522.1,2.93614184]
[1725013266803,8.61860537,2522.2,2522.1,2.93614184]
[1725013267120,8.61860537,2522.2,2522.1,2.93603629]
[1725013267606,9.01505537,2522.2,2522.1,2.53956629]
[1725013268002,8.61860537,2522.2,2522.1,2.93603629]
[1725013270113,8.61860537,2522.2,2522.1,1.45037726]
[1725013270391,8.61860537,2522.2,2522.1,1.45038585]
[1725013270495,8.61860537,2522.2,2522.1,2.93605348]
[1725013270707,9.01505537,2522.2,2522.1,2.93605348]
[1725013271105,8.61860537,2522.2,2522.1,2.93605348]
[1725013271609,9.01505537,2522.2,2522.1,2.93605348]
[1725013272706,0.39642,2522.5,2522.1,12.5659597]
[1725013272914,0.39641,2522.5,2522.4,0.39642]
[1725013273103,3.81641,2522.5,2522.4,2.93600348]
[1725013273300,8.26494615,2522.5,2522.4,2.93600348]
[1725013273998,8.26494615,2522.5,2522.4,1.66162572]
[1725013274206,8.26494615,2522.5,2522.4,2.53936119]
[1725013274403,13.21997615,2522.5,2522.4,1.01916893]
[1725013275596,12.22894615,2522.5,2522.4,1.01916893]
[1725013276106,12.22894615,2522.5,2522.4,2.03182228]
[1725013276509,12.22894615,2522.5,2522.4,1.38946893]
[1725013276763,7.86853615,2522.5,2522.4,3.30587791]
[1725013277430,7.86853615,2522.5,2522.4,0.76672]
[1725013277608,7.86853615,2522.5,2522.4,3.30554931]
[1725013278213,8.26494615,2522.5,2522.4,2.42784615]
[1725013278424,8.26494615,2522.5,2522.4,2.03142615]
[1725013278715,8.26494615,2522.5,2522.4,2.90921461]
[1725013279217,8.26494615,2522.5,2522.4,3.30563461]
[1725013279410,7.86853615,2522.5,2522.4,3.30563461]
[1725013279909,1.1196,2522.8,2522.6,0.39639]
[1725013279910,3.42,2522.7,2522.6,0.39639]
[1725013280114,0.75886,2522.8,2522.7,0.39638]
[1725013280314,0.75886,2522.8,2522.7,2.05750615]
[1725013280519,4.91324578,2522.8,2522.7,2.05750615]
[1725013280719,4.51688578,2522.8,2522.7,2.05750615]
[1725013280914,5.58438578,2522.8,2522.7,6.89904653]
[1725013281109,1.43,2522.8,2522.7,6.89904653]
[1725013281512,1.43,2522.8,2522.7,7.27714653]
[1725013283037,1.43,2522.8,2522.7,6.22330858]
[1725013283221,1.43,2522.8,2522.7,7.27656865]
[1725013284222,1.43,2522.8,2522.7,3.31256865]
[1725013286456,1.43,2522.8,2522.7,0.77448]
[1725013286520,1.43,2522.8,2522.7,3.31258852]
[1725013289530,1.43,2522.8,2522.7,0.77448]
[1725013289715,1.43,2522.8,2522.7,3.31269472]
[1725013291621,1.82636,2522.8,2522.7,2.93459472]
[1725013291925,7.73938566,2522.8,2522.7,2.53821472]
[1725013292513,12.69429566,2522.8,2522.7,2.53821472]
[1725013292881,18.69429566,2522.8,2522.7,1.01862633]
[1725013293017,0.39642,2522.4,2522.3,3.91373]
[1725013293222,1.82642,2522.4,2522.3,6.45311429]
[1725013294627,2.20462,2522.4,2522.3,6.45311429]
[1725013294924,2.20462,2522.4,2522.3,2.93581429]
[1725013296116,11.69593484,2522.4,2522.3,2.53938429]
[1725013297128,10.70486484,2522.4,2522.3,2.93582429]
[1725013297320,6.74006484,2522.4,2522.3,2.93582429]
[1725013298020,6.74006484,2522.4,2522.3,2.53938429]
[1725013298228,10.70486484,2522.4,2522.3,2.53938429]
[1725013299031,11.69593484,2522.4,2522.3,2.53938429]
[1725013299276,11.69593484,2522.4,2522.2,0.3726]
[1725013299277,0.39644,2522.3,2522.2,0.3726]
[1725013299436,4.36124,2522.3,2522.2,3.47874655]
[1725013299629,8.91717428,2522.3,2522.2,4.35653445]
[1725013300135,9.90827428,2522.3,2522.2,2.53908584]
[1725013301230,4.95237428,2522.3,2522.2,2.93553584]
[1725013301426,5.98593428,2522.3,2522.2,3.29963584]
[1725013302583,5.98593428,2522.3,2522.2,0.76055]
[1725013302636,5.98593428,2522.3,2522.2,4.09128206]
[1725013303331,5.98593428,2522.3,2522.2,3.30012329]
[1725013303637,5.98593428,2522.3,2522.2,0.76055]
[1725013304131,5.98593428,2522.3,2522.2,3.30013072]
[1725013304536,11.33827428,2522.3,2522.2,2.53958072]
[1725013306726,11.33827428,2522.3,2522.2,1.89712479]
[1725013308325,12.32937428,2522.3,2522.2,1.89712479]
[1725013308735,12.53126589,2522.3,2522.2,1.89712479]
[1725013311029,12.53126589,2522.3,2522.2,1.48566626]
[1725013312713,15.73906589,2522.3,2522.2,0.87795691]
[1725013312787,0.3965,2521.9,2521.8,0.00593859]
[1725013312936,1.8265,2521.9,2521.8,1.49181862]
[1725013313248,2.601,2521.9,2521.8,1.49181862]
[1725013314040,2.601,2521.9,2521.8,2.5459178]
[1725013315231,2.601,2521.9,2521.8,1.66783821]
[1725013315432,2.601,2521.9,2521.8,2.94244517]
[1725013315644,2.601,2521.9,2521.8,2.06435821]
[1725013315843,2.601,2521.9,2521.8,2.54591103]
[1725013316142,7.06640488,2521.9,2521.8,1.02525975]
[1725013316739,8.05766488,2521.9,2521.8,1.02525975]
[1725013317040,8.42146488,2521.9,2521.8,1.02525975]
[1725013317845,8.42146488,2521.9,2521.8,1.02528681]
[1725013318246,8.42146488,2521.9,2521.8,0.41748722]
[1725013319252,8.42146488,2521.9,2521.8,0.00593859]
[1725013321550,13.37832488,2521.9,2521.8,0.00593859]
[1725013331162,19.37832488,2521.9,2521.8,0.00593859]
[1725013331369,13.37832488,2521.9,2521.8,0.00593859]
[1725013333501,1.38804,2521.4,2521.3,0.7571]
[1725013333759,0.39658,2521.4,2521.3,0.7571]
[1725013333871,6.42757534,2521.4,2521.3,1.36488952]
[1725013335160,6.42757534,2521.4,2521.3,0.97268952]
[1725013335963,6.42757534,2521.4,2521.3,1.34698952]
[1725013337164,6.42757534,2521.4,2521.3,1.75860247]
[1725013337367,6.42757534,2521.4,2521.3,1.34698952]
[1725013338167,6.42757534,2521.4,2521.3,1.75860645]
[1725013338968,6.42757534,2521.4,2521.3,1.34698952]
[1725013339163,6.42757534,2521.4,2521.3,1.75860927]
[1725013339589,0.00593859,2521.6,2521.3,15.92430927]
[1725013339875,1.43593859,2521.6,2521.5,0.39656]
[1725013340138,1.43593859,2521.6,2521.5,6.39304449]
[1725013340667,1.43593859,2521.6,2521.5,7.27093259]
[1725013340872,1.43593859,2521.6,2521.5,6.39304449]
[1725013341378,1.43593859,2521.6,2521.5,8.26237951]
[1725013342076,0.00593859,2521.6,2521.5,17.07121046]
[1725013342279,0.39648,2522.1,2521.5,17.07121046]
[1725013342280,1.43,2521.9,2521.8,0.39652]
[1725013342478,1.43,2521.9,2521.8,3.29091951]
[1725013342681,1.8265,2521.9,2521.8,3.29091951]
[1725013342882,6.02972079,2521.9,2521.8,3.29091951]
[1725013343376,6.02972079,2521.9,2521.8,3.29051446]
[1725013343875,6.02972079,2521.9,2521.8,2.93571446]
[1725013345566,6.02972079,2521.9,2521.8,3.29341446]
[1725013346301,6.02972079,2521.9,2521.8,2.23936968]
[1725013346517,6.02972079,2521.9,2521.8,3.29176678]
[1725013347280,6.02972079,2521.9,2521.8,6.49956678]
[1725013347579,6.02972079,2521.9,2521.8,3.29176678]
[1725013347974,6.40162079,2521.9,2521.8,3.29176678]
[1725013348370,7.39288079,2521.9,2521.8,2.53754678]
[1725013348771,7.39288079,2521.9,2521.8,1.66032362]
[1725013349699,7.39288079,2521.9,2521.8,2.53766716]
[1725013350271,7.39288079,2521.9,2521.8,2.53766499]
[1725013350472,7.39288079,2521.9,2521.8,1.66037131]
[1725013350779,11.35848079,2521.9,2521.8,1.66037131]
[1725013351374,12.34974079,2521.9,2521.8,1.66037131]
[1725013355994,12.34974079,2521.9,2521.8,0.41115083]
[1725013356385,1.38793,2521.6,2521.5,1.03676023]
[1725013356390,2.81793,2521.6,2521.5,2.96791467]
[1725013356584,7.14893163,2521.6,2521.5,3.57536156]